bitfinex/quotes_BTCUSD_20220304
["timestamp","ask_amount","ask_price","bid_price","bid_amount"]
[1646407102370,0.67140449,40661.0,40657.0,0.368153]
[1646407102669,0.05,40671.0,40658.0,0.21123222]
[1646407102867,0.2,40671.0,40659.0,0.368126]
[1646407103168,0.2,40671.0,40659.0,0.346126]
[1646407103169,0.131571,40668.0,40659.0,0.346126]
[1646407103368,0.131571,40668.0,40661.0,0.2598678]
[1646407103566,0.131571,40668.0,40662.0,0.346101]
[1646407103766,0.131571,40668.0,40662.0,0.53388276]
[1646407104167,0.131571,40678.0,40665.0,0.02448]
[1646407104369,0.131571,40678.0,40667.0,0.12298623]
[1646407104370,0.131571,40671.0,40667.0,0.12298623]
[1646407104567,0.31895869,40666.0,40663.0,0.05]
[1646407105012,0.31895869,40666.0,40654.0,0.1452]
[1646407105213,0.00117715,40665.0,40658.0,0.00086102]
[1646407105415,0.00117715,40665.0,40663.0,0.346094]
[1646407105612,0.00117715,40665.0,40663.0,0.4320836]
[1646407105918,0.31895869,40666.0,40663.0,1.1706836]
[1646407106112,0.31895869,40666.0,40663.0,0.4820836]
[1646407106312,0.31,40679.0,40667.0,0.02448]
[1646407106514,0.31,40679.0,40669.0,0.02448]
[1646407106515,0.01,40679.0,40669.0,0.02448]
[1646407106712,0.01,40679.0,40673.0,0.02448]
[1646407106913,0.01,40679.0,40675.0,0.02448]
[1646407107117,0.01,40679.0,40674.0,0.34598]
[1646407107118,0.4502,40688.0,40679.0,0.02448]
[1646407107316,0.334468,40693.0,40681.0,0.02448]
[1646407107317,0.131571,40692.0,40681.0,0.02448]
[1646407107512,0.131571,40692.0,40686.0,0.19321865]
[1646407107713,0.131571,40692.0,40687.0,0.345848]
[1646407107918,0.15,40698.0,40687.0,0.66120862]
[1646407108115,0.15,40698.0,40687.0,0.395848]
[1646407108314,0.15,40691.0,40687.0,0.0399]
[1646407108569,0.15,40691.0,40681.0,0.0452]
[1646407108771,0.15,40688.0,40681.0,0.0452]
[1646407108968,0.15,40682.0,40681.0,0.0452]
[1646407109169,0.45007934,40682.0,40673.0,0.0452]
[1646407109368,0.45007934,40682.0,40658.0,0.00086102]
[1646407109369,0.15,40675.0,40671.0,0.0452]
[1646407109569,0.061501,40676.0,40654.0,0.24593955]
[1646407109570,1.4,40671.0,40654.0,0.24593955]
[1646407109772,1.4,40671.0,40640.0,0.02448]
[1646407109773,0.15,40656.0,40640.0,0.02448]
[1646407109973,0.15,40656.0,40643.0,0.370771]
[1646407109974,0.2,40656.0,40643.0,0.370771]
[1646407110171,0.2,40656.0,40653.0,0.02448]
[1646407110370,0.2,40656.0,40644.0,0.001]
[1646407110570,0.2,40656.0,40645.0,0.346264]
[1646407110769,0.2,40656.0,40646.0,0.02448]
[1646407110969,0.2,40656.0,40644.0,0.001]
[1646407111273,0.2,40656.0,40651.0,0.28929579]
[1646407111470,0.2,40656.0,40644.0,0.001]
[1646407111471,0.05,40656.0,40644.0,0.001]
[1646407111673,0.05,40656.0,40645.0,0.34627]
[1646407111674,0.061534,40654.0,40645.0,0.34627]
[1646407112310,0.061534,40654.0,40652.0,0.25589708]
[1646407112504,0.061534,40654.0,40653.0,0.346196]
[1646407112906,0.05,40656.0,40653.0,0.346196]
[1646407113409,0.061525,40658.0,40653.0,0.346196]
[1646407113608,0.05,40659.0,40653.0,0.40771754]
[1646407113809,2.818362,40663.0,40657.0,0.26368434]
[1646407114008,2.818362,40663.0,40658.0,0.346142]
[1646407114009,0.15,40659.0,40658.0,0.346142]
[1646407114222,0.05,40659.0,40658.0,0.396142]
[1646407114610,0.05,40659.0,40658.0,0.45766424]
[1646407114809,0.00100913,40665.0,40659.0,0.18450937]
[1646407115108,0.15,40667.0,40660.0,0.346122]
[1646407115307,0.15,40667.0,40660.0,0.396122]
[1646407115507,0.5222,40672.0,40660.0,0.396122]
[1646407115508,0.05,40672.0,40670.0,0.02448]
[1646407115709,0.5334,40678.0,40671.0,0.27257301]
[1646407116081,0.513075,40680.0,40671.0,0.32257301]
[1646407116082,0.7947,40680.0,40671.0,0.32257301]
[1646407116281,0.7947,40680.0,40660.0,0.1]
[1646407116282,0.25394788,40676.0,40660.0,0.1]
[1646407116488,0.3,40675.0,40660.0,0.1]
[1646407116881,0.3,40675.0,40661.0,0.29713]
[1646407117084,0.3,40675.0,40663.0,0.23809234]
[1646407117284,0.3,40675.0,40666.0,0.272612]
[1646407117584,0.123014,40680.0,40664.0,0.12300894]
[1646407117585,0.3,40679.0,40673.0,0.272556]
[1646407117785,0.08586389,40675.0,40673.0,0.272556]
[1646407117986,0.00984494,40674.0,40673.0,0.272556]
[1646407118184,0.00984494,40674.0,40673.0,0.39553979]
[1646407118385,0.3,40683.0,40673.0,0.76152726]
[1646407118584,0.2,40684.0,40673.0,0.48897126]
[1646407118788,0.3,40685.0,40673.0,0.48897126]
[1646407118989,0.061493,40682.0,40673.0,0.48897126]
[1646407119185,0.061493,40682.0,40673.0,0.17298379]
[1646407119589,0.00107017,40677.0,40673.0,0.17377234]
[1646407119805,0.00107017,40677.0,40674.0,0.272546]
[1646407120008,0.368141,40676.0,40674.0,0.05649044]
[1646407120209,0.01944517,40677.0,40673.0,0.00078855]
[1646407120210,0.368141,40674.0,40673.0,0.00078855]
[1646407120406,1.55231798,40673.0,40668.0,0.12301229]
[1646407120606,0.08586389,40669.0,40668.0,0.12301229]
[1646407120806,0.3,40669.0,40661.0,0.2459696]
[1646407121010,0.3,40669.0,40660.0,0.06152558]
[1646407121011,0.386516,40661.0,40660.0,0.06152558]
[1646407121206,0.018375,40661.0,40655.0,0.18454041]
[1646407121406,0.318375,40661.0,40655.0,0.18454041]
[1646407121608,0.36908081,40650.0,40645.0,0.272772]
[1646407121806,0.41908081,40650.0,40646.0,0.20479011]
[1646407122007,0.41908081,40650.0,40647.0,0.272775]
[1646407122206,0.41908081,40650.0,40647.0,0.51883165]
[1646407122411,0.41908081,40650.0,40647.0,0.24605665]
[1646407122412,0.3,40649.0,40647.0,0.24605665]
[1646407122607,0.368141,40648.0,40646.0,0.0615245]
[1646407122807,0.3,40647.0,40646.0,0.0615245]
[1646407123011,0.2,40648.0,40646.0,0.0615245]
[1646407123012,0.26266901,40648.0,40646.0,0.0615245]
[1646407124265,0.26266901,40648.0,40644.0,0.001]
[1646407124266,0.868141,40647.0,40644.0,0.001]
[1646407124463,0.691481,40647.0,40644.0,0.001]
[1646407124661,0.368141,40646.0,40644.0,0.001]
[1646407124860,0.368141,40645.0,40644.0,0.001]
[1646407125063,0.473106,40647.0,40644.0,0.001]
[1646407125262,0.173106,40647.0,40644.0,0.001]
[1646407125469,0.05,40647.0,40645.0,0.272794]
[1646407125864,0.05,40647.0,40644.0,0.001]
[1646407126065,0.05,40647.0,40645.0,0.272793]
[1646407126262,0.05,40647.0,40644.0,0.001]
[1646407126464,0.05,40647.0,40645.0,0.272792]
[1646407126665,0.05,40647.0,40645.0,0.48197643]
[1646407126868,0.36908081,40650.0,40645.0,0.53197643]
[1646407127066,0.36908081,40650.0,40645.0,1.29505643]
[1646407127321,0.56283523,40669.0,40653.0,0.24074464]
[1646407127523,0.67627986,40672.0,40660.0,0.25560318]
[1646407127720,0.67627986,40672.0,40661.0,0.272655]
[1646407127721,0.12408636,40670.0,40661.0,0.272655]
[1646407127925,0.05,40679.0,40664.0,0.02448]
[1646407128130,0.05,40679.0,40664.0,0.572626]
[1646407128325,0.49,40680.0,40670.0,0.06148644]
[1646407128524,0.26281964,40683.0,40671.0,0.27257]
[1646407128721,0.06149,40681.0,40671.0,0.32257]
[1646407128921,0.26281964,40683.0,40675.0,0.17235343]
[1646407129122,0.26281964,40683.0,40676.0,0.27253]
[1646407129327,0.26281964,40683.0,40676.0,0.12298067]
[1646407129328,0.368141,40679.0,40676.0,0.12298067]
[1646407129528,0.368141,40679.0,40667.0,0.005]
[1646407129529,0.63251951,40674.0,40667.0,0.005]
[1646407129722,0.061509,40672.0,40667.0,0.005]
[1646407130324,0.218375,40668.0,40651.0,0.008148]
[1646407130525,0.218375,40668.0,40644.0,0.001]
[1646407130526,0.53711715,40646.0,40644.0,0.001]
[1646407130922,0.53711715,40646.0,40644.0,0.06254189]
[1646407131572,0.90528615,40646.0,40644.0,0.001]
[1646407131770,0.53711715,40646.0,40644.0,0.001]
[1646407132076,0.53711715,40646.0,40645.0,0.280933]
[1646407132875,0.53711715,40646.0,40645.0,0.4480066]
[1646407133071,0.53211715,40646.0,40645.0,0.4480066]
[1646407133472,0.53211715,40646.0,40645.0,0.4980066]
[1646407133872,0.53211715,40646.0,40645.0,1.2366066]
[1646407134074,0.53211715,40646.0,40645.0,1.63068741]
[1646407134474,0.3,40663.0,40655.0,0.229739]
[1646407134676,0.018375,40664.0,40650.0,0.06151979]
[1646407134926,0.061526,40661.0,40655.0,0.17305101]
[1646407135123,0.3,40660.0,40655.0,0.17305101]
[1646407135324,0.21500865,40660.0,40655.0,0.17305101]
[1646407135524,0.51500865,40660.0,40655.0,0.17305101]
[1646407135923,0.25550974,40659.0,40655.0,0.17305101]
[1646407136123,0.25550974,40659.0,40656.0,0.06152551]
[1646407136523,0.51500865,40660.0,40656.0,0.06152551]
[1646407136722,0.21500865,40660.0,40656.0,0.06152551]
[1646407137328,0.004,40661.0,40656.0,0.06152551]
[1646407137525,0.218375,40657.0,40645.0,0.05208242]
[1646407137725,0.368169,40658.0,40645.0,0.05208242]
[1646407137726,0.368169,40653.0,40645.0,0.05208242]
[1646407137925,0.4959656,40652.0,40646.0,0.229802]
[1646407138126,0.4775906,40652.0,40645.0,0.00096242]
[1646407138327,0.429722,40647.0,40645.0,0.00096242]
[1646407138566,0.568169,40646.0,40645.0,0.00096242]
[1646407139071,0.568169,40646.0,40632.0,0.12313245]
[1646407139072,0.78931692,40646.0,40632.0,0.12313245]
[1646407139267,0.2,40636.0,40632.0,0.12313245]
[1646407139467,0.17309255,40635.0,40632.0,0.12313245]
[1646407139667,0.22309255,40635.0,40633.0,0.30216867]
[1646407142069,0.05,40635.0,40634.0,0.229894]
[1646407142318,0.049,40635.0,40633.0,0.30216867]
[1646407142522,0.049,40635.0,40634.0,0.279894]
[1646407142718,0.049,40635.0,40634.0,0.229894]
[1646407143121,0.75270169,40660.0,40636.0,0.05371471]
[1646407143324,0.19468029,40665.0,40657.0,0.4]
[1646407143519,0.19468029,40669.0,40650.0,0.18458567]
[1646407143718,0.4997,40672.0,40652.0,0.31988]
[1646407143920,0.4997,40672.0,40652.0,0.02448]
[1646407144122,0.4997,40672.0,40651.0,0.05]
[1646407144123,0.15,40670.0,40651.0,0.05]
[1646407144322,0.368171,40658.0,40650.0,0.05]
[1646407144624,0.15,40659.0,40641.0,0.24611199]
[1646407144625,0.02448,40651.0,40641.0,0.24611199]
[1646407144822,0.02448,40649.0,40641.0,0.24611199]
[1646407145019,0.00114339,40635.0,40631.0,0.011]
[1646407145225,0.02448,40631.0,40620.0,0.001]
[1646407145423,0.03913694,40628.0,40620.0,0.001]
[1646407145619,0.02448,40625.0,40616.0,0.06259825]
[1646407145820,0.02448,40623.0,40616.0,0.06259825]
[1646407146085,0.1,40625.0,40616.0,0.06259825]
[1646407146286,0.1,40625.0,40619.0,0.29169745]
[1646407146287,0.061591,40622.0,40619.0,0.29169745]
[1646407146590,0.14898612,40627.0,40619.0,0.29169745]
[1646407146786,0.14898612,40627.0,40616.0,0.001]
[1646407146787,0.17346612,40627.0,40616.0,0.001]
[1646407146989,0.17346612,40627.0,40625.0,0.0127929]
[1646407146990,0.14898612,40627.0,40625.0,0.0127929]
[1646407147387,0.21056412,40627.0,40625.0,0.0127929]
[1646407147686,0.06158,40626.0,40625.0,0.0127929]
[1646407148188,0.001,40630.0,40625.0,0.07437696]
[1646407148588,0.21637284,40629.0,40628.0,0.29889852]
[1646407148787,0.21637284,40629.0,40625.0,0.12437696]
[1646407148987,0.21137284,40629.0,40625.0,0.12437696]
[1646407149190,0.21137284,40629.0,40624.0,0.12316007]
[1646407149191,1.4,40627.0,40624.0,0.12316007]
[1646407149388,0.14569431,40626.0,40624.0,0.12316007]
[1646407149588,0.44569431,40626.0,40624.0,0.12316007]
[1646407149816,0.44569431,40626.0,40618.0,0.00142284]
[1646407149817,0.14569431,40626.0,40618.0,0.00142284]
[1646407150017,0.26886731,40626.0,40618.0,0.00142284]
[1646407150316,0.14569431,40626.0,40618.0,0.00142284]
[1646407150525,0.14569431,40626.0,40624.0,0.12316007]
[1646407150717,0.14569431,40626.0,40625.0,0.05]
[1646407150918,0.21988624,40633.0,40625.0,0.05]
[1646407151518,0.004,40630.0,40627.0,0.06156506]
[1646407152317,0.004,40630.0,40628.0,0.27998742]
[1646407152518,0.004,40630.0,40624.0,0.12316007]
[1646407152519,0.368171,40629.0,40624.0,0.12316007]
[1646407152720,0.32448,40628.0,40616.0,0.001]
[1646407153122,0.32448,40628.0,40620.0,0.18475486]
[1646407153318,0.368171,40627.0,40620.0,0.12316997]
[1646407153567,0.418171,40627.0,40620.0,0.12316997]
[1646407153963,0.061586,40626.0,40620.0,0.12316997]
[1646407154163,0.25386441,40623.0,40622.0,0.06158412]
[1646407154765,0.1768088,40625.0,40622.0,0.06158412]
[1646407155267,0.1768088,40625.0,40624.0,0.2885356]
[1646407155668,0.1768088,40625.0,40624.0,0.3385356]
[1646407156165,0.368171,40624.0,40622.0,0.06158412]
[1646407156365,0.668171,40623.0,40622.0,0.06158412]
[1646407156566,0.668171,40623.0,40616.0,0.12219111]
[1646407156567,0.42977,40622.0,40616.0,0.12219111]
[1646407156767,0.45425,40622.0,40616.0,0.11119111]
[1646407156966,0.20580831,40621.0,40616.0,0.001]
[1646407157167,0.668171,40620.0,40617.0,0.06160028]
[1646407157413,0.368171,40619.0,40617.0,0.06160028]
[1646407157611,0.14282374,40618.0,40616.0,0.001]
[1646407157812,0.20441574,40618.0,40616.0,0.001]
[1646407158215,0.368171,40617.0,40616.0,0.001]
[1646407158413,0.668171,40617.0,40616.0,0.001]
[1646407158613,0.44769,40617.0,40608.0,0.001]
[1646407158816,0.368171,40614.0,40600.0,0.0001]
[1646407159014,0.368171,40614.0,40602.0,0.4816]
[1646407159015,0.02448,40611.0,40602.0,0.4816]
[1646407159212,0.49921589,40610.0,40607.0,0.12321954]
[1646407159415,0.368171,40608.0,40607.0,0.12321954]
[1646407159725,0.90784106,40608.0,40602.0,0.001]
[1646407159921,0.368171,40607.0,40602.0,0.001]
[1646407160115,0.492651,40607.0,40602.0,0.001]
[1646407160714,0.00619999,40597.0,40592.0,0.18484913]
[1646407161166,0.3,40608.0,40600.0,0.123152]
[1646407161365,0.13104489,40610.0,40600.0,0.123152]
[1646407161667,0.21061967,40608.0,40600.0,0.173152]
[1646407161866,0.15552489,40610.0,40600.0,0.43853736]
[1646407161867,0.25812101,40605.0,40600.0,0.43853736]
[1646407162067,0.061606,40608.0,40601.0,0.06160322]
[1646407162266,0.061608,40607.0,40601.0,0.11160322]
[1646407162672,0.3,40606.0,40601.0,0.11160322]
[1646407162968,0.12448,40608.0,40601.0,0.11160322]
[1646407163167,0.061615,40607.0,40601.0,0.11160322]
[1646407163371,0.3,40615.0,40601.0,0.11160322]
[1646407163372,0.33861032,40618.0,40602.0,0.24635286]
[1646407163574,0.005,40612.0,40602.0,0.24635286]
[1646407164167,0.005,40612.0,40607.0,0.25463491]
[1646407164370,0.005,40612.0,40607.0,0.2298036]
[1646407164568,0.066602,40612.0,40607.0,0.2298036]
[1646407164814,0.2778542,40613.0,40607.0,0.2298036]
[1646407164815,0.17928257,40611.0,40607.0,0.2298036]
[1646407165215,0.22928257,40611.0,40607.0,0.2298036]
[1646407166417,0.05,40611.0,40610.0,0.30335093]
[1646407166618,0.05,40611.0,40610.0,0.35335093]
[1646407166827,0.05,40618.0,40610.0,0.35335093]
[1646407167119,0.4693,40624.0,40610.0,0.35335093]
[1646407167120,0.67825909,40624.0,40612.0,0.06157949]
[1646407167317,0.48215263,40626.0,40612.0,0.06157949]
[1646407167519,0.23316787,40624.0,40613.0,0.22457781]
[1646407167717,0.29474887,40624.0,40612.0,0.06157949]
[1646407168320,0.3,40623.0,40612.0,0.06157949]
[1646407168783,0.3,40623.0,40614.0,0.2870284]
[1646407168971,0.3,40623.0,40616.0,0.06158348]
[1646407168972,0.061586,40622.0,40616.0,0.06158348]
[1646407169170,0.368171,40621.0,40616.0,0.06158348]
[1646407169373,0.184769,40622.0,40615.0,0.17316695]
[1646407169374,0.3,40620.0,40615.0,0.17316695]
[1646407169671,0.01158349,40615.0,40608.0,0.18477555]
[1646407170070,0.01158349,40615.0,40610.0,0.06158657]
[1646407170671,0.01158349,40615.0,40611.0,0.30539639]
[1646407170872,0.05,40624.0,40613.0,0.12316565]
[1646407171075,0.17311898,40626.0,40614.0,0.3]
[1646407171276,0.28015072,40626.0,40615.0,0.26711374]
[1646407171471,0.05,40629.0,40616.0,0.05305394]
[1646407171872,0.19188733,40631.0,40615.0,0.02448]
[1646407172316,0.19136333,40631.0,40615.0,0.02448]
[1646407172517,0.123154,40630.0,40614.0,0.3]
[1646407172715,0.18428596,40628.0,40615.0,0.26246655]
[1646407172917,0.18428596,40628.0,40617.0,0.06157092]
[1646407173318,0.18428596,40628.0,40618.0,0.24515052]
[1646407173520,0.18428596,40628.0,40617.0,0.06157092]
[1646407173521,0.368171,40627.0,40617.0,0.06157092]
[1646407173921,0.05,40628.0,40617.0,0.06157092]
[1646407174719,0.05,40628.0,40617.0,0.36157092]
[1646407175021,0.05,40628.0,40627.0,0.231026]
[1646407175917,0.05,40628.0,40626.0,0.06157129]
[1646407175918,0.418171,40628.0,40626.0,0.06157129]
[1646407176375,0.418171,40628.0,40626.0,0.05657129]
[1646407176576,0.418171,40628.0,40615.0,0.18474972]
[1646407176878,0.05,40628.0,40621.0,0.06142176]
[1646407177075,0.05,40628.0,40615.0,0.17974972]
[1646407177076,0.05,40628.0,40626.0,0.06157129]
[1646407177273,0.24136333,40631.0,40626.0,0.11157129]
[1646407177472,0.368171,40630.0,40626.0,0.11157129]
[1646407178073,0.45941842,40629.0,40626.0,0.11157129]
[1646407178278,0.368171,40628.0,40626.0,0.11157129]
[1646407178474,0.05,40628.0,40626.0,0.11157129]
[1646407178674,0.368171,40627.0,40626.0,0.11157129]
[1646407178874,0.05,40628.0,40626.0,0.11157129]
[1646407179077,0.061585,40629.0,40626.0,0.11157129]
[1646407179278,0.19136333,40631.0,40627.0,0.24082257]
[1646407179475,0.21828942,40638.0,40627.0,0.42550724]
[1646407179925,0.21828942,40638.0,40628.0,0.32448]
[1646407180124,0.21828942,40638.0,40630.0,0.06155469]
[1646407180324,0.21828942,40638.0,40634.0,0.29091044]
[1646407180529,0.02,40644.0,40641.0,0.25987361]
[1646407180530,0.17693521,40644.0,40641.0,0.25987361]
[1646407180727,0.02,40644.0,40636.0,1.0386]
[1646407180925,0.19447706,40654.0,40634.0,0.29091044]
[1646407181131,0.49447706,40655.0,40634.0,0.43631044]
[1646407181327,0.3,40655.0,40634.0,0.43631044]
[1646407181525,0.3,40655.0,40641.0,0.2981717]
[1646407181526,0.61756206,40655.0,40641.0,0.2981717]
[1646407181731,0.25245713,40654.0,40641.0,0.35583161]
[1646407181926,0.123085,40655.0,40644.0,0.24613491]
[1646407182128,0.19447706,40654.0,40644.0,0.24613491]
[1646407182427,0.123085,40655.0,40645.0,0.06153714]
[1646407182428,0.19447706,40655.0,40645.0,0.06153714]
[1646407182625,0.19447706,40655.0,40651.0,0.23216123]
[1646407182827,0.09340734,40649.0,40646.0,0.3]
[1646407183026,0.19447706,40655.0,40646.0,0.3]
[1646407183027,0.19447706,40655.0,40654.0,0.27277124]
[1646407183227,0.19447706,40657.0,40654.0,0.27277124]
[1646407183427,0.29724743,40660.0,40654.0,0.33429548]
[1646407183666,0.5207,40668.0,40654.0,0.33429548]
[1646407183667,0.24309633,40663.0,40654.0,0.33429548]
[1646407183867,0.1667201,40661.0,40654.0,0.33429548]
[1646407184070,0.24309633,40664.0,40654.0,0.33429548]
[1646407184376,0.24309633,40665.0,40654.0,0.33429548]
[1646407184567,0.24309633,40665.0,40656.0,0.07098049]
[1646407184971,0.05,40668.0,40658.0,0.06151217]
[1646407185170,0.26614488,40670.0,40658.0,0.06151217]
[1646407185371,0.24309633,40671.0,40660.0,0.18453158]
[1646407185572,1.4,40670.0,40639.0,0.2]
[1646407185776,1.4,40670.0,40617.0,0.184597]
[1646407185777,0.15,40642.0,40617.0,0.184597]
[1646407185973,0.15,40625.0,40618.0,0.5]
[1646407186176,0.15,40625.0,40609.0,0.001]
[1646407186177,0.2499,40621.0,40609.0,0.001]
[1646407186373,0.2735294,40616.0,40610.0,0.73864]
[1646407186574,0.2735294,40616.0,40603.0,0.29668762]
[1646407186575,0.58960487,40615.0,40603.0,0.29668762]
[1646407186773,0.143402,40615.0,40603.0,0.29668762]
[1646407186976,0.05,40620.0,40605.0,1.4]
[1646407187174,0.05161029,40625.0,40615.0,0.15]
[1646407187429,0.0914,40629.0,40628.0,0.138637]
[1646407187926,0.0914,40629.0,40628.0,0.138636]
[1646407188129,0.22842276,40640.0,40629.0,1.17448]
[1646407188332,0.19184454,40647.0,40634.0,0.02448]
[1646407188529,0.4783,40656.0,40634.0,0.02448]
[1646407188530,0.3,40648.0,40635.0,0.138593]
[1646407188729,0.3,40648.0,40640.0,0.05855717]
[1646407188927,0.123083,40647.0,40641.0,0.138566]
[1646407189128,0.061541,40648.0,40646.0,0.138545]
[1646407189332,0.061541,40648.0,40645.0,0.30834768]
[1646407189537,0.24309633,40656.0,40646.0,0.06664186]
[1646407189732,0.34061247,40661.0,40646.0,0.06664186]
[1646407189733,0.05139971,40658.0,40651.0,0.27092083]
[1646407189928,0.05139971,40658.0,40647.0,0.59486932]
[1646407190528,0.05139971,40658.0,40642.0,0.15]
[1646407190730,0.05139971,40658.0,40632.0,0.1]
[1646407190934,0.3,40657.0,40628.0,0.25]
[1646407191167,0.3,40657.0,40628.0,0.05]
[1646407191168,0.061542,40648.0,40628.0,0.05]
[1646407191365,0.45879897,40647.0,40628.0,0.05]
[1646407191568,0.45879897,40647.0,40642.0,0.25805075]
[1646407191766,0.01387474,40659.0,40642.0,0.25805075]
[1646407191767,0.15337581,40654.0,40645.0,0.07410883]
[1646407191967,0.4863366,40660.0,40647.0,0.28427845]
[1646407192172,0.061527,40659.0,40647.0,0.28427845]
[1646407192466,0.3,40658.0,40647.0,0.28427845]
[1646407192669,0.631551,40664.0,40658.0,0.30512899]
[1646407192670,0.5085,40664.0,40658.0,0.30512899]
[1646407192867,0.36715321,40667.0,40649.0,0.7386]
[1646407192868,0.12405688,40667.0,40649.0,0.7386]
[1646407193066,0.24309633,40670.0,40655.0,0.20629367]
[1646407193265,0.24309633,40670.0,40645.0,0.3]
[1646407193467,0.19468859,40667.0,40645.0,0.3]
[1646407193668,0.061527,40662.0,40642.0,0.4]
[1646407193867,0.061527,40662.0,40653.0,0.24837169]
[1646407194268,0.061527,40662.0,40654.0,0.26421482]
[1646407194670,0.061527,40658.0,40654.0,0.26421482]
[1646407194916,0.061527,40658.0,40653.0,0.24837169]
[1646407195113,0.123053,40663.0,40653.0,0.24837169]
[1646407195312,0.14470203,40667.0,40654.0,0.3]
[1646407195512,0.14470203,40667.0,40653.0,0.24837169]
[1646407196013,0.061513,40665.0,40653.0,0.24837169]
[1646407196214,0.17224132,40664.0,40653.0,0.24837169]
[1646407196412,0.17224132,40664.0,40643.0,0.3]
[1646407196614,0.16724132,40664.0,40644.0,0.7386]
[1646407196813,0.16724132,40664.0,40643.0,0.3]
[1646407197023,0.25253342,40655.0,40643.0,0.3]
[1646407197219,0.17865168,40652.0,40633.0,0.5]
[1646407197418,0.22865168,40652.0,40638.0,0.31259504]
[1646407197813,0.05,40652.0,40638.0,0.31259504]
[1646407198014,0.061537,40650.0,40639.0,0.05412529]
[1646407198217,0.05,40654.0,40653.0,0.07310436]
[1646407198413,0.4695,40672.0,40639.0,0.45]
[1646407198414,0.92362377,40672.0,40640.0,0.3]
[1646407198670,0.16014738,40665.0,40645.0,0.7386]
[1646407198866,0.77893518,40672.0,40646.0,0.3]
[1646407198867,0.5195,40672.0,40646.0,0.3]
[1646407199068,0.21970185,40665.0,40659.0,0.27644189]
[1646407199265,0.5195,40672.0,40659.0,0.27644189]
[1646407199266,0.061511,40667.0,40659.0,0.27644189]
[1646407199666,0.061511,40667.0,40656.0,0.30422194]
[1646407199871,0.061511,40667.0,40656.0,0.19750704]
[1646407200066,0.061511,40667.0,40647.0,0.1]
[1646407200067,0.061511,40667.0,40649.0,0.3]
[1646407200370,0.061511,40667.0,40643.0,0.3]
[1646407200568,0.061521,40662.0,40653.0,0.06884356]
[1646407200771,0.05,40667.0,40656.0,0.76308]
[1646407200972,0.05,40667.0,40659.0,0.24665252]
[1646407201168,0.17900105,40668.0,40659.0,0.24665252]
[1646407201369,0.22900105,40668.0,40659.0,0.24665252]
[1646407201569,0.22900105,40668.0,40665.0,0.25616267]
[1646407201771,0.22900105,40668.0,40667.0,0.06718477]
[1646407201772,0.111509,40668.0,40667.0,0.06718477]
[1646407201976,0.05,40677.0,40669.0,1.4]
[1646407202175,0.21468859,40684.0,40678.0,0.06763356]
[1646407202176,0.02,40684.0,40678.0,0.06763356]
[1646407202432,0.02,40684.0,40673.0,0.76308]
[1646407202635,0.02,40684.0,40679.0,0.16082762]
[1646407202822,0.02,40684.0,40667.0,0.27916805]
[1646407202823,0.15375031,40690.0,40675.0,0.76308]
[1646407203022,0.15375031,40690.0,40675.0,0.72837233]
[1646407203223,0.361477,40689.0,40676.0,0.80389233]
[1646407203430,0.3,40688.0,40676.0,0.80389233]
[1646407203624,0.3,40688.0,40679.0,0.05703041]
[1646407203825,0.24613921,40683.0,40667.0,0.061477]
[1646407204026,0.24613921,40683.0,40660.0,0.02448]
[1646407204027,0.46737896,40682.0,40660.0,0.02448]
[1646407204426,0.061494,40678.0,40660.0,0.02448]
[1646407204625,0.061507,40673.0,40650.0,0.0414]
[1646407204826,0.24265383,40664.0,40655.0,0.7386]
[1646407205034,0.05,40667.0,40655.0,0.02448]
[1646407205227,0.05,40667.0,40647.0,0.3]
[1646407205228,1.84359387,40653.0,40647.0,0.3]
[1646407205427,1.84359387,40653.0,40642.0,3.13776492]
[1646407205629,1.89359387,40653.0,40642.0,3.13776492]
[1646407205825,1.89359387,40653.0,40643.0,0.7386]
[1646407206068,1.89359387,40653.0,40643.0,0.02448]
[1646407206269,1.89359387,40653.0,40632.0,0.4907]
[1646407206470,1.89359387,40653.0,40631.0,0.01]
[1646407206671,0.061535,40651.0,40631.0,0.01]
[1646407206877,0.15332845,40650.0,40631.0,0.01]
[1646407207070,0.25166115,40635.0,40631.0,0.24583938]
[1646407207272,0.20814359,40638.0,40631.0,0.24583938]
[1646407207469,0.20814359,40638.0,40632.0,0.7386]
[1646407207674,0.06154,40642.0,40637.0,0.07294318]
[1646407207872,0.05,40648.0,40627.0,0.1454]
[1646407207873,0.05,40648.0,40629.0,0.2]
[1646407208071,0.4596,40663.0,40628.0,0.25]
[1646407208072,0.05,40656.0,40641.0,0.7386]
[1646407208271,0.21752468,40658.0,40653.0,0.76308]
[1646407208470,0.21752468,40658.0,40653.0,0.7386]
[1646407208671,0.21752468,40658.0,40654.0,0.1]
[1646407208871,0.21752468,40658.0,40650.0,0.291128]
[1646407209069,0.21752468,40658.0,40652.0,0.02448]
[1646407209269,0.21752468,40658.0,40653.0,0.7386]
[1646407209470,0.21752468,40658.0,40652.0,0.02448]
[1646407209672,0.21752468,40658.0,40651.0,0.1]
[1646407209924,0.21752468,40658.0,40626.0,0.4203]
[1646407209925,0.061519,40657.0,40640.0,0.061521]
[1646407210129,0.21752468,40658.0,40640.0,0.7386]
[1646407210130,0.15,40653.0,40640.0,0.7386]
[1646407210329,0.2,40653.0,40641.0,0.7386]
[1646407210724,0.28128228,40648.0,40644.0,0.25170326]
[1646407210929,0.28128228,40648.0,40627.0,0.3]
[1646407210930,0.211535,40647.0,40627.0,0.3]
[1646407211127,0.3,40646.0,40627.0,0.02448]
[1646407211327,0.3,40646.0,40630.0,0.07307482]
[1646407211328,0.35,40646.0,40630.0,0.07307482]
[1646407211528,0.15,40644.0,40623.0,2.49877605]
[1646407211729,0.15,40644.0,40630.0,0.23971356]
[1646407211730,0.20645804,40640.0,40630.0,0.23971356]
[1646407211934,0.3,40643.0,40634.0,0.32777984]